bitfinex/quotes_BTCUSD_20250922
["timestamp","ask_amount","ask_price","bid_price","bid_amount"]
[1758560544924,0.98855999,112780.0,112770.0,0.02903]
[1758560545128,1.96261979,112780.0,112770.0,0.11587967]
[1758560545495,1.96261979,112780.0,112770.0,0.11429967]
[1758560547242,1.96261979,112780.0,112770.0,0.12429967]
[1758560550723,1.96789979,112780.0,112770.0,0.12429967]
[1758560550931,1.96477979,112780.0,112770.0,0.12429967]
[1758560551362,1.99177979,112780.0,112770.0,0.39989967]
[1758560551577,1.99177979,112780.0,112770.0,0.39781967]
[1758560552841,1.99177979,112780.0,112770.0,0.12221967]
[1758560553244,1.98649979,112780.0,112770.0,0.40392967]
[1758560553467,1.99177979,112780.0,112770.0,0.40392967]
[1758560554232,1.99177979,112780.0,112770.0,0.12432967]
[1758560554631,1.99177979,112780.0,112770.0,0.39988967]
[1758560555423,1.98865979,112780.0,112770.0,0.39988967]
[1758560556961,1.98865979,112780.0,112770.0,0.12432967]
[1758560557157,1.98865979,112780.0,112770.0,0.39980967]
[1758560557893,1.96477979,112780.0,112770.0,0.39980967]
[1758560558963,1.96261979,112780.0,112770.0,0.39980967]
[1758560559932,1.96477979,112780.0,112770.0,0.39980967]
[1758560560170,1.96789979,112780.0,112770.0,0.39980967]
[1758560560372,1.96789979,112780.0,112770.0,0.40388967]
[1758560560570,1.99177979,112780.0,112770.0,0.40388967]
[1758560562660,1.99177979,112780.0,112770.0,0.12221967]
[1758560562851,1.99177979,112780.0,112770.0,0.40177967]
[1758560563648,1.99177979,112780.0,112770.0,0.37782967]
[1758560564520,1.99177979,112780.0,112770.0,0.09826967]
[1758560564726,1.99177979,112780.0,112770.0,0.37782967]
[1758560565680,1.99177979,112780.0,112770.0,0.09826967]
[1758560565907,1.99177979,112780.0,112770.0,0.37114967]
[1758560566108,1.99177979,112780.0,112770.0,0.37110967]
[1758560566369,1.99177979,112780.0,112770.0,0.37782967]
[1758560566551,2.96583959,112780.0,112770.0,0.37782967]
[1758560566755,1.99177979,112780.0,112770.0,0.37782967]
[1758560567155,0.51736786,112760.0,112750.0,0.0002]
[1758560567348,1.49142766,112760.0,112750.0,0.46086967]
[1758560567567,1.52058766,112760.0,112750.0,0.36502967]
[1758560568382,1.54724393,112760.0,112750.0,0.36502967]
[1758560568556,1.54724393,112760.0,112750.0,0.36802967]
[1758560568729,1.54724393,112760.0,112750.0,0.09846967]
[1758560568945,1.54724393,112760.0,112750.0,0.09546967]
[1758560569178,1.54724393,112760.0,112750.0,0.36702967]
[1758560569541,1.54724393,112760.0,112750.0,0.09346967]
[1758560569727,1.54724393,112760.0,112750.0,0.37302967]
[1758560570257,2.52130373,112760.0,112750.0,0.0082]
[1758560570664,2.52130373,112760.0,112750.0,0.28776]
[1758560570895,2.55380316,112760.0,112750.0,0.28776]
[1758560571069,2.52130373,112760.0,112750.0,0.28776]
[1758560571283,2.52130373,112760.0,112750.0,0.0082]
[1758560571418,0.51739932,112740.0,112730.0,0.10304878]
[1758560571619,2.52030815,112740.0,112730.0,0.00720878]
[1758560571866,2.49467892,112740.0,112730.0,0.00720878]
[1758560572073,2.52134557,112740.0,112730.0,0.00720878]
[1758560572248,0.17744654,112710.0,112700.0,0.00024]
[1758560572449,0.17744654,112710.0,112700.0,0.0198]
[1758560572450,2.49119537,112710.0,112700.0,0.0198]
[1758560572731,1.44236497,112710.0,112700.0,0.0198]
[1758560572915,1.46903753,112710.0,112700.0,0.14252]
[1758560573071,1.46903753,112710.0,112700.0,0.13276]
[1758560573523,1.44058674,112710.0,112700.0,0.13276]
[1758560573735,1.44058674,112710.0,112700.0,0.00024]
[1758560573871,1.57993643,112710.0,112700.0,0.00024]
[1758560574312,0.51746228,112700.0,112690.0,0.01252]
[1758560574507,1.42507831,112700.0,112690.0,0.01252]
[1758560574883,0.17747803,112690.0,112680.0,0.17616095]
[1758560575090,1.07386267,112690.0,112680.0,0.01720095]
[1758560575275,1.07386267,112690.0,112680.0,0.29940095]
[1758560575685,1.07386267,112690.0,112680.0,0.01720095]
[1758560575898,1.41386267,112690.0,112680.0,0.01720095]
[1758560576050,1.98682468,112690.0,112680.0,0.01720095]
[1758560576235,1.98682468,112690.0,112660.0,99.82247471]
[1758560576236,1.38473418,112670.0,112660.0,99.82247471]
[1758560576645,1.44018497,112670.0,112660.0,100.11035471]
[1758560577228,1.44018497,112670.0,112660.0,99.82247471]
[1758560577229,0.57296033,112670.0,112660.0,99.82247471]
[1758560577436,1.44018497,112670.0,112660.0,99.82294358]
[1758560577658,0.57296033,112670.0,112660.0,100.11118358]
[1758560577867,1.44018497,112670.0,112660.0,100.11118358]
[1758560578069,1.44018497,112670.0,112660.0,99.82294358]
[1758560578272,1.62330652,112670.0,112660.0,99.82294358]
[1758560579122,0.72517998,112670.0,112660.0,99.82294358]
[1758560579328,1.04507184,112670.0,112660.0,99.82294358]
[1758560579638,0.61145952,112670.0,112660.0,99.82294358]
[1758560579840,1.04507184,112670.0,112660.0,99.82294358]
[1758560580047,0.61145952,112670.0,112660.0,99.82294358]
[1758560580212,1.47868416,112670.0,112660.0,99.82294358]
[1758560580426,1.50713495,112670.0,112660.0,100.11166358]
[1758560580649,1.50713495,112670.0,112660.0,99.82294358]
[1758560580853,1.50713495,112670.0,112660.0,100.11182358]
[1758560580854,1.59240462,112670.0,112660.0,100.11182358]
[1758560581693,1.04507184,112670.0,112660.0,100.11182358]
[1758560581919,0.02868442,112670.0,112660.0,100.13790358]
[1758560582135,0.02868442,112670.0,112660.0,100.31542887]
[1758560582353,0.02868442,112670.0,112660.0,100.40069854]
[1758560582562,0.36868442,112670.0,112660.0,100.40069854]
[1758560582767,0.36768442,112670.0,112660.0,100.40069854]
[1758560583203,0.36668442,112670.0,112660.0,100.40069854]
[1758560583415,0.46029674,112670.0,112660.0,100.40069854]
[1758560583617,0.02668442,112670.0,112660.0,100.40069854]
[1758560583822,0.46029674,112670.0,112660.0,100.40069854]
[1758560584069,0.02668442,112670.0,112660.0,100.40069854]
[1758560584564,0.02668442,112670.0,112660.0,100.40369854]
[1758560584764,0.46029674,112670.0,112660.0,100.40369854]
[1758560585191,0.02668442,112670.0,112660.0,100.41369854]
[1758560585402,0.46029674,112670.0,112660.0,100.41069854]
[1758560585607,0.02668442,112670.0,112660.0,100.40069854]
[1758560585766,0.02668442,112670.0,112660.0,100.88165854]
[1758560585965,0.02668442,112670.0,112660.0,100.89465854]
[1758560586372,0.02668442,112670.0,112660.0,100.89965854]
[1758560587404,0.02668442,112670.0,112660.0,100.12981854]
[1758560587613,0.61949992,112670.0,112660.0,100.90045854]
[1758560587828,0.02668442,112670.0,112660.0,100.90045854]
[1758560588995,0.02668442,112670.0,112660.0,100.12981854]
[1758560589218,0.02668442,112670.0,112660.0,100.90089854]
[1758560589713,0.02668442,112670.0,112660.0,100.12981854]
[1758560589947,0.02668442,112670.0,112660.0,100.90089854]
[1758560590171,0.61949992,112670.0,112660.0,100.12981854]
[1758560590382,0.61949992,112670.0,112660.0,100.90117854]
[1758560590588,0.02668442,112670.0,112660.0,100.90117854]
[1758560590811,0.61949992,112670.0,112660.0,100.90117854]
[1758560591226,0.02668442,112670.0,112660.0,100.90117854]
[1758560591689,0.61949992,112670.0,112660.0,100.90117854]
[1758560591896,0.02668442,112670.0,112660.0,100.90117854]
[1758560592333,0.61949992,112670.0,112660.0,100.12981854]
[1758560592723,0.79700946,112670.0,112660.0,100.04821325]
[1758560592985,0.79700946,112670.0,112660.0,100.24413325]
[1758560593203,1.13700946,112670.0,112660.0,99.95071325]
[1758560593420,1.14007946,112670.0,112660.0,100.31397325]
[1758560593634,1.14007946,112670.0,112660.0,100.31393325]
[1758560593845,1.16320946,112670.0,112660.0,100.30893325]
[1758560594054,1.13700946,112670.0,112660.0,100.30893325]
[1758560594279,1.13700946,112670.0,112660.0,99.94771325]
[1758560594510,0.54419396,112670.0,112660.0,100.32243325]
[1758560594733,1.13700946,112670.0,112660.0,100.32043325]
[1758560594946,1.13700946,112670.0,112660.0,100.32643325]
[1758560595163,1.13700946,112670.0,112660.0,100.32201325]
[1758560595378,0.54419396,112670.0,112660.0,100.50253854]
[1758560595587,1.13700946,112670.0,112660.0,100.32501325]
[1758560595822,1.13700946,112670.0,112660.0,99.93571325]
[1758560596051,1.16507946,112670.0,112660.0,100.21390358]
[1758560596261,1.16507946,112670.0,112660.0,99.82594358]
[1758560596471,1.16507946,112670.0,112660.0,100.21414358]
[1758560596693,1.16507946,112670.0,112660.0,99.82594358]
[1758560596925,1.16507946,112670.0,112660.0,100.11822358]
[1758560597134,1.16507946,112670.0,112660.0,100.11834358]
[1758560597363,1.19353025,112670.0,112660.0,100.11834358]
[1758560598255,1.16186946,112670.0,112660.0,100.11834358]
[1758560598483,1.16507946,112670.0,112660.0,100.11834358]
[1758560598701,1.19353025,112670.0,112660.0,100.11830358]
[1758560600399,1.19971018,112670.0,112660.0,100.11830358]
[1758560601037,1.20071018,112670.0,112660.0,100.11830358]
[1758560601463,1.20071018,112670.0,112660.0,100.11530358]
[1758560601675,1.20071018,112670.0,112660.0,100.11522358]
[1758560601877,1.20171018,112670.0,112660.0,100.11522358]
[1758560603238,1.17325674,112670.0,112660.0,100.11522358]
[1758560603854,1.14839674,112670.0,112660.0,100.11522358]
[1758560604065,1.14518674,112670.0,112660.0,100.13817358]
[1758560604530,1.14839674,112670.0,112660.0,100.13817358]
[1758560604737,1.17004674,112670.0,112660.0,100.13817358]
[1758560604943,1.17004674,112670.0,112660.0,100.11522358]
[1758560604944,1.17325674,112670.0,112660.0,100.11522358]
[1758560606467,1.17325674,112670.0,112660.0,99.82294358]
[1758560606679,1.4480418,112670.0,112660.0,99.82294358]
[1758560606887,1.56346337,112670.0,112660.0,99.82294358]
[1758560607089,1.56346337,112670.0,112660.0,100.11506358]
[1758560607295,1.59191416,112670.0,112660.0,100.11506358]
[1758560607515,1.88403416,112670.0,112660.0,99.82294358]
[1758560607720,1.88403416,112670.0,112660.0,100.11506358]
[1758560608337,1.96930383,112670.0,112660.0,99.82294358]
[1758560608542,2.04493306,112670.0,112660.0,99.82294358]
[1758560608738,1.74545282,112670.0,112660.0,99.82294358]
[1758560609171,1.66018315,112670.0,112660.0,99.82294358]
[1758560609379,1.65918315,112670.0,112660.0,99.82294358]
[1758560609555,1.75510315,112670.0,112660.0,99.82294358]
[1758560609794,1.76110315,112670.0,112660.0,99.81686361]
[1758560610802,1.66486315,112670.0,112660.0,99.81686361]
[1758560611052,1.75982315,112670.0,112660.0,99.81686361]
[1758560611267,1.66378315,112670.0,112660.0,99.81686361]
[1758560611479,1.77374315,112670.0,112660.0,99.81686361]
[1758560612095,1.8345965,112670.0,112660.0,99.81686361]
[1758560612313,1.86022573,112670.0,112660.0,99.81686361]
[1758560613342,2.64007173,112670.0,112660.0,99.81686361]
[1758560613553,2.64007173,112670.0,112660.0,98.80375174]
[1758560613763,2.69827974,112670.0,112660.0,98.80375174]
[1758560613970,2.69827974,112670.0,112660.0,98.75918814]
[1758560614406,2.32701435,112670.0,112660.0,98.21855439]
[1758560614586,3.17808435,112670.0,112660.0,98.19189213]
[1758560614839,2.82747435,112670.0,112660.0,97.17519716]
[1758560615099,2.94443435,112670.0,112660.0,97.17519716]
[1758560615311,2.51392512,112670.0,112660.0,97.17519716]
[1758560615536,1.66367177,112670.0,112660.0,97.17519716]
[1758560615759,2.08198235,112670.0,112660.0,97.17519716]
[1758560615966,1.66890335,112670.0,112660.0,97.17519716]
[1758560616278,1.86122435,112670.0,112660.0,97.17619716]
[1758560616480,2.28740802,112670.0,112660.0,97.17619716]
[1758560616662,2.24266102,112670.0,112660.0,97.17619716]
[1758560616906,1.91349402,112670.0,112660.0,97.17519716]
[1758560617116,1.44066435,112670.0,112660.0,97.17519716]
[1758560617324,1.84026435,112670.0,112660.0,97.17519716]
[1758560617531,1.39566435,112670.0,112660.0,97.17519716]
[1758560617738,1.68722435,112670.0,112660.0,97.17519716]
[1758560617940,1.78718435,112670.0,112660.0,97.17519716]
[1758560618143,1.81534745,112670.0,112660.0,97.17519716]
[1758560618348,1.81534536,112670.0,112660.0,97.17519716]
[1758560618545,1.71922536,112670.0,112660.0,97.17519716]
[1758560618674,1.81518536,112670.0,112660.0,97.17519716]
[1758560619066,1.05966226,112670.0,112660.0,97.17519716]
[1758560619267,1.35110226,112670.0,112660.0,97.17519716]
[1758560619516,1.69110226,112670.0,112660.0,97.17519716]
[1758560620655,1.76673149,112670.0,112660.0,97.17519716]
[1758560623351,1.42529149,112670.0,112660.0,97.17519716]
[1758560623548,1.94797651,112670.0,112660.0,97.17519716]
[1758560623723,1.76674684,112670.0,112660.0,97.17519716]
[1758560623925,1.34145571,112670.0,112660.0,97.17519716]
[1758560624135,1.55440492,112670.0,112660.0,97.19793716]
[1758560624335,1.58457212,112670.0,112660.0,97.19793716]
[1758560625150,1.28417212,112670.0,112660.0,97.19793716]
[1758560625581,0.91902022,112670.0,112660.0,97.19951716]
[1758560625800,1.21034022,112670.0,112660.0,97.19951716]
[1758560626017,1.55034022,112670.0,112660.0,97.19951716]
[1758560626239,1.58049212,112670.0,112660.0,97.19793716]
[1758560626689,1.63195558,112670.0,112660.0,97.19793716]
[1758560626929,1.7518688,112670.0,112660.0,97.17519716]
[1758560627794,1.7489188,112670.0,112660.0,97.17519716]
[1758560628043,1.60880723,112670.0,112660.0,97.19793716]
[1758560628245,1.58737567,112670.0,112660.0,97.19951716]
[1758560628918,1.58737567,112670.0,112660.0,97.19793716]
[1758560629136,1.6132099,112670.0,112660.0,97.19793716]
[1758560632606,1.58721567,112670.0,112660.0,97.19951716]
[1758560633283,1.58721567,112670.0,112660.0,97.49051716]
[1758560634565,1.58721567,112670.0,112660.0,97.19951716]
[1758560634774,1.92611849,112670.0,112660.0,97.19793716]
[1758560635344,1.86668305,112670.0,112660.0,97.19793716]
[1758560635546,1.85026844,112670.0,112660.0,97.19793716]
[1758560635758,1.86678177,112670.0,112660.0,97.19793716]
[1758560636164,1.86681624,112670.0,112660.0,97.19793716]
[1758560636398,1.57577624,112670.0,112660.0,97.19793716]
[1758560636600,1.84066201,112670.0,112660.0,97.49023716]
[1758560637002,1.09452044,112670.0,112660.0,97.49023716]
[1758560637378,1.01082909,112670.0,112660.0,97.49023716]
[1758560638071,1.01082909,112670.0,112660.0,97.19951716]
[1758560638477,1.43452044,112670.0,112660.0,97.19951716]
[1758560638666,1.40283602,112670.0,112660.0,97.19951716]
[1758560638825,1.39583602,112670.0,112660.0,97.49011716]
[1758560639033,1.06541434,112670.0,112660.0,97.49007716]
[1758560639235,1.09209698,112670.0,112660.0,97.49007716]
[1758560640401,1.09210317,112670.0,112660.0,97.49007716]
[1758560641145,1.08810317,112670.0,112660.0,97.49007716]
[1758560641340,1.08410317,112670.0,112660.0,97.49007716]
[1758560641571,1.08610317,112670.0,112660.0,97.49007716]
[1758560642200,1.08610317,112670.0,112660.0,97.19951716]
[1758560642367,1.08610317,112670.0,112660.0,97.48967716]
[1758560642644,1.08610317,112670.0,112660.0,97.48963716]
[1758560643155,1.08610957,112670.0,112660.0,97.48963716]
[1758560643357,0.98431939,112670.0,112660.0,97.48963716]
[1758560643563,0.95763675,112670.0,112660.0,97.48963716]
[1758560646075,0.95763675,112670.0,112660.0,97.19951716]
[1758560646297,0.94937351,112670.0,112660.0,97.19793716]
[1758560646494,0.95763102,112670.0,112660.0,97.48959716]
[1758560646807,0.94937351,112670.0,112660.0,97.48959716]
[1758560647013,1.84514154,112670.0,112660.0,97.17519716]
[1758560647214,1.80926617,112670.0,112660.0,97.17519716]
[1758560647366,1.8348954,112670.0,112660.0,97.17519716]
[1758560647823,1.8650473,112670.0,112660.0,97.17519716]
[1758560648186,1.0176646,112670.0,112660.0,97.17519716]
[1758560648387,1.8650473,112670.0,112660.0,97.17519716]
[1758560648994,1.8415073,112670.0,112660.0,97.19776716]
[1758560649197,1.83325014,112670.0,112660.0,97.19776716]
[1758560649594,1.83325014,112670.0,112660.0,97.17519716]
[1758560649800,1.85679014,112670.0,112660.0,97.17519716]
[1758560650211,1.85679014,112670.0,112660.0,97.46519716]
[1758560650439,1.85679014,112670.0,112660.0,97.17519716]
[1758560650849,1.86569218,112670.0,112660.0,97.17519716]
[1758560651616,1.89237809,112670.0,112660.0,97.17519716]
[1758560651820,1.86883809,112670.0,112660.0,97.19776716]
[1758560652246,1.86883809,112670.0,112660.0,97.48764716]
[1758560652447,1.89237809,112670.0,112660.0,97.48764716]
[1758560652749,1.86883809,112670.0,112660.0,97.17519716]
[1758560652952,1.89237809,112670.0,112660.0,97.17519716]
[1758560654242,1.86674886,112670.0,112660.0,97.17519716]
[1758560654868,1.84320886,112670.0,112660.0,97.19799716]
[1758560655127,1.83996886,112670.0,112660.0,97.19799716]
[1758560655305,1.80981696,112670.0,112660.0,97.19799716]
[1758560655510,1.83996886,112670.0,112660.0,97.48759716]
[1758560656395,1.93644414,112670.0,112660.0,97.46451716]
[1758560656596,1.89288809,112670.0,112660.0,97.17519716]
[1758560658456,1.89289827,112670.0,112660.0,97.17519716]
[1758560658660,1.60285827,112670.0,112660.0,97.46455716]
[1758560658867,1.88601522,112670.0,112660.0,97.46455716]
[1758560659225,1.86803863,112670.0,112660.0,97.48735716]
[1758560659625,1.86803863,112670.0,112660.0,97.48723716]
[1758560659832,1.89221863,112670.0,112660.0,97.46443716]
[1758560660153,1.88601522,112670.0,112660.0,97.46443716]
[1758560660362,1.88601522,112670.0,112660.0,97.48723716]
[1758560660603,2.9880154,112670.0,112660.0,97.48723716]
[1758560660776,2.9911254,112670.0,112660.0,97.48723716]
[1758560661394,2.9911254,112670.0,112660.0,97.17519716]
[1758560661575,2.67593117,112670.0,112660.0,97.46415716]
[1758560661775,0.69614829,112670.0,112660.0,97.48853716]
[1758560661987,0.95947906,112670.0,112660.0,97.48853716]
[1758560662311,1.9357255,112670.0,112660.0,97.48853716]
[1758560662721,1.9356855,112670.0,112660.0,97.48695716]
[1758560663335,1.9356455,112670.0,112660.0,97.48853716]
[1758560663838,1.6467655,112670.0,112660.0,97.48853716]
[1758560664986,1.53134393,112670.0,112660.0,97.48853716]
[1758560665472,1.53107993,112670.0,112660.0,97.48853716]
[1758560665956,1.53107993,112670.0,112660.0,97.19957716]
[1758560666174,2.62248394,112670.0,112660.0,97.17519716]
[1758560666467,2.93861394,112670.0,112660.0,97.17519716]
[1758560667123,2.96444817,112670.0,112660.0,97.17519716]
[1758560667298,2.97065199,112670.0,112660.0,97.17519716]
[1758560667506,2.99628122,112670.0,112660.0,97.17519716]
[1758560668516,2.99628122,112670.0,112660.0,97.46403716]
[1758560668718,1.89180118,112670.0,112660.0,97.46399716]
[1758560669279,1.89180118,112670.0,112660.0,97.46395716]
[1758560669392,1.89180089,112670.0,112660.0,97.46395716]
[1758560670045,1.88559736,112670.0,112660.0,97.46395716]
[1758560670260,1.85830736,112670.0,112660.0,97.46395716]
[1758560670983,1.85830736,112670.0,112660.0,97.48808716]
[1758560671193,1.86749077,112670.0,112660.0,97.48808716]
[1758560671397,1.86749077,112670.0,112660.0,97.17519716]
[1758560671398,1.86622154,112670.0,112660.0,97.17519716]
[1758560671861,1.57738154,112670.0,112660.0,97.17519716]
[1758560672068,1.86598154,112670.0,112660.0,97.17519716]
[1758560672268,1.8297395,112670.0,112660.0,97.19932716]
[1758560672692,1.5411395,112670.0,112660.0,97.48788716]
[1758560672907,1.79766186,112670.0,112660.0,97.48788716]
[1758560673392,1.80641498,112670.0,112660.0,97.48788716]
[1758560674707,1.81262122,112670.0,112660.0,97.48788716]
[1758560675160,1.81262122,112670.0,112660.0,97.19932716]
[1758560675387,1.81560122,112670.0,112660.0,97.19932716]
[1758560675587,1.84144845,112670.0,112660.0,97.19932716]
[1758560676002,1.86580845,112670.0,112660.0,97.19932716]
[1758560677294,1.86580845,112670.0,112660.0,97.17519716]
[1758560678558,1.86580845,112670.0,112660.0,97.19932716]
[1758560679483,1.86580845,112670.0,112660.0,97.17519716]
[1758560679661,1.83996122,112670.0,112660.0,97.17519716]
[1758560680373,1.55140122,112670.0,112660.0,97.46323716]
[1758560680578,1.83932122,112670.0,112660.0,97.46323716]
[1758560680994,1.52406122,112670.0,112660.0,97.46311716]
[1758560681306,1.81194122,112670.0,112660.0,97.48724716]
[1758560681440,1.52406122,112670.0,112660.0,97.48724716]
[1758560681636,1.81198122,112670.0,112660.0,97.48724716]
[1758560682046,1.52406122,112670.0,112660.0,97.48724716]
[1758560682265,1.81198122,112670.0,112660.0,97.48724716]
[1758560682473,1.52406122,112670.0,112660.0,97.48724716]
[1758560682678,1.81194122,112670.0,112660.0,97.48724716]
[1758560682918,1.80573498,112670.0,112660.0,97.48724716]
[1758560683066,1.81194248,112670.0,112660.0,97.48724716]
[1758560683284,1.52406248,112670.0,112660.0,97.48724716]
[1758560683954,1.81174248,112670.0,112660.0,97.48724716]
[1758560684353,1.52406248,112670.0,112660.0,97.48724716]
[1758560684603,1.81166248,112670.0,112660.0,97.48724716]
[1758560685311,1.81166248,112670.0,112660.0,97.19932716]
[1758560685545,2.88007145,112670.0,112660.0,97.17519716]
[1758560685718,2.96397791,112670.0,112660.0,97.17519716]
[1758560685923,2.98053297,112670.0,112660.0,97.17519716]
[1758560686329,3.03053315,112670.0,112660.0,97.17519716]
[1758560687168,3.02853315,112670.0,112660.0,97.17519716]
[1758560687443,2.69093315,112670.0,112660.0,97.17519716]
[1758560687693,2.97509218,112670.0,112660.0,97.17519716]
[1758560687924,2.68741218,112670.0,112660.0,97.17519716]
[1758560688161,2.84989218,112670.0,112660.0,97.17519716]
[1758560688604,2.82426295,112670.0,112660.0,97.17519716]
[1758560688834,3.49649817,112670.0,112660.0,97.17519716]
[1758560689060,3.02453317,112670.0,112660.0,97.17519716]
[1758560689368,2.66477017,112670.0,112660.0,97.17519716]
[1758560689565,3.17651611,112670.0,112660.0,97.19932716]
[1758560689780,2.88875611,112670.0,112660.0,97.19932716]
[1758560690002,2.88875611,112670.0,112660.0,97.17519716]
[1758560690003,3.33912578,112670.0,112660.0,97.17519716]
[1758560690703,3.15225011,112670.0,112660.0,97.17519716]
[1758560690941,3.15225011,112670.0,112660.0,97.19932716]
[1758560690942,2.93585511,112670.0,112660.0,97.19932716]
[1758560691172,1.97571782,112670.0,112660.0,97.20090716]
[1758560691384,2.93585511,112670.0,112660.0,97.19932716]
[1758560691634,2.96148434,112670.0,112660.0,97.19932716]
[1758560692107,2.95239768,112670.0,112660.0,97.19932716]
[1758560692322,1.97571765,112670.0,112660.0,97.19932716]
[1758560692781,1.97603765,112670.0,112660.0,97.19932716]
[1758560693392,2.95271768,112670.0,112660.0,97.19932716]
[1758560693625,2.95569768,112670.0,112660.0,97.17519716]
[1758560693837,2.97834691,112670.0,112660.0,97.17519716]
[1758560694045,1.68807765,112670.0,112660.0,97.20090716]
[1758560694250,1.97595765,112670.0,112660.0,97.20090716]
[1758560694465,1.65792575,112670.0,112660.0,97.48874716]
[1758560694687,1.95105767,112670.0,112660.0,97.48874716]
[1758560696717,1.40818688,112670.0,112660.0,97.48874716]
[1758560697408,0.97437764,112670.0,112660.0,97.48874716]
[1758560697642,1.40818688,112670.0,112660.0,97.48874716]
[1758560697865,1.40197938,112670.0,112660.0,97.48874716]
[1758560698960,1.11417938,112670.0,112660.0,97.48874716]
[1758560699201,1.40177938,112670.0,112660.0,97.48874716]
[1758560699432,0.99875781,112670.0,112660.0,97.48874716]
[1758560699747,0.65875781,112670.0,112660.0,97.48874716]
[1758560699985,0.99875781,112670.0,112660.0,97.48874716]
[1758560700258,0.99875781,112670.0,112660.0,97.48858716]
[1758560700498,0.99375781,112670.0,112660.0,97.48858716]
[1758560700748,0.55994857,112670.0,112660.0,97.48854716]
[1758560700983,0.99575781,112670.0,112660.0,97.48854716]
[1758560701423,1.31366971,112670.0,112660.0,97.48708716]
[1758560701647,1.41756861,112670.0,112660.0,97.48708716]
[1758560701878,1.10417938,112670.0,112660.0,97.48866716]
[1758560702104,0.98875781,112670.0,112660.0,97.48866716]
[1758560702346,0.98875781,112670.0,112660.0,97.48926716]
[1758560702787,0.98875781,112670.0,112660.0,97.20090716]
[1758560703017,0.98875781,112670.0,112660.0,97.48930716]
[1758560703729,0.98875781,112670.0,112660.0,97.48918716]
[1758560704838,1.14821282,112670.0,112660.0,97.48918716]
[1758560705092,1.14821282,112670.0,112660.0,97.20090716]
[1758560705498,1.14821282,112670.0,112660.0,97.48906716]
[1758560705711,1.14821282,112670.0,112660.0,97.48898716]
[1758560705983,1.14821282,112670.0,112660.0,97.20090716]
[1758560706452,1.14821282,112670.0,112660.0,97.48902716]
[1758560706704,1.14821282,112670.0,112660.0,97.20090716]
[1758560706933,1.14821282,112670.0,112660.0,97.48744716]
[1758560707165,1.17384205,112670.0,112660.0,97.48756716]
[1758560707395,1.14821282,112670.0,112660.0,97.19932716]
[1758560707619,1.17384205,112670.0,112660.0,97.48756716]
[1758560707998,1.20003728,112670.0,112660.0,97.48756716]
[1758560708240,1.17440805,112670.0,112660.0,97.19932716]
[1758560708419,1.17440805,112670.0,112660.0,97.48756716]
[1758560708993,1.14821282,112670.0,112660.0,97.48914716]
[1758560712434,1.14621282,112670.0,112660.0,97.48914716]
[1758560712680,1.14621282,112670.0,112660.0,97.49614716]
[1758560712905,1.14621282,112670.0,112660.0,97.49714716]
[1758560715485,1.14621282,112670.0,112660.0,97.49670716]
[1758560715949,0.55294857,112670.0,112660.0,97.49670716]
[1758560716173,1.14621282,112670.0,112660.0,97.49670716]
[1758560718836,0.55294857,112670.0,112660.0,97.49670716]
[1758560719053,1.14621282,112670.0,112660.0,97.49670716]
[1758560719675,1.14621282,112670.0,112660.0,97.20890716]
[1758560719878,1.14621282,112670.0,112660.0,97.59262716]
[1758560721062,1.14621282,112670.0,112660.0,97.30486716]
[1758560721281,1.14621282,112670.0,112660.0,97.49658716]
[1758560724132,1.14621282,112670.0,112660.0,97.49500716]
[1758560724360,1.14621282,112670.0,112660.0,97.49512716]
[1758560725750,1.14621282,112670.0,112660.0,97.20732716]
[1758560725957,1.14621282,112670.0,112660.0,97.47083716]
[1758560726164,1.17227282,112670.0,112660.0,97.47083716]
[1758560726624,1.01274178,112670.0,112660.0,97.49366716]
[1758560727027,1.01274178,112670.0,112660.0,97.20602716]
[1758560727226,1.01274178,112670.0,112660.0,97.49354716]
[1758560727645,0.98970178,112670.0,112660.0,97.46959716]
[1758560727879,0.98668178,112670.0,112660.0,97.46959716]
[1758560728092,0.98668178,112670.0,112660.0,97.49305716]
[1758560728294,0.98668178,112670.0,112660.0,97.17519716]
[1758560728475,0.98668178,112670.0,112660.0,97.48601716]
[1758560728771,0.98668178,112670.0,112660.0,97.48893716]
[1758560728976,1.01400178,112670.0,112660.0,97.17819716]
[1758560729184,1.01400178,112670.0,112660.0,97.46547716]
[1758560729620,1.01400178,112670.0,112660.0,97.46543716]
[1758560729823,0.98970178,112670.0,112660.0,97.17819716]
[1758560730039,1.01400178,112670.0,112660.0,97.46539716]
[1758560730898,1.01400178,112670.0,112660.0,97.17819716]
[1758560731126,1.44773499,112670.0,112660.0,97.46559716]
[1758560731371,1.56315656,112670.0,112660.0,97.17819716]
[1758560731608,1.12942335,112670.0,112660.0,97.46547716]
[1758560732447,1.12942335,112670.0,112660.0,97.17819716]
[1758560732642,1.12942335,112670.0,112660.0,97.46551716]
[1758560732851,1.12942335,112670.0,112660.0,97.46251716]
[1758560733649,1.94537501,112670.0,112660.0,97.46243716]
[1758560733850,1.90226102,112670.0,112660.0,97.46243716]
[1758560734062,1.61498102,112670.0,112660.0,97.17519716]
[1758560734286,1.90222102,112670.0,112660.0,97.17519716]
[1758560734490,1.61698102,112670.0,112660.0,97.17519716]
[1758560734698,1.98949069,112670.0,112660.0,97.17519716]
[1758560734897,1.90222102,112670.0,112660.0,97.17519716]
[1758560735124,1.97029265,112670.0,112660.0,97.17519716]
[1758560735276,1.94766342,112670.0,112660.0,97.17519716]
[1758560735482,1.95166342,112670.0,112660.0,97.17519716]
[1758560735885,1.66442342,112670.0,112660.0,97.17519716]
[1758560736067,1.95158342,112670.0,112660.0,97.17519716]
[1758560736263,1.66442342,112670.0,112660.0,97.17519716]
[1758560736616,1.95158342,112670.0,112660.0,97.17519716]
[1758560737707,3.22704442,112670.0,112660.0,97.17519716]
[1758560737906,3.18456042,112670.0,112660.0,97.17519716]
[1758560738530,3.18448042,112670.0,112660.0,97.17519716]
[1758560739423,2.89748042,112670.0,112660.0,97.17519716]
[1758560739639,3.28036042,112670.0,112660.0,97.17519716]
[1758560739845,3.30484738,112670.0,112660.0,97.17519716]
[1758560740506,3.20888738,112670.0,112660.0,97.17519716]
[1758560740741,2.92196738,112670.0,112660.0,97.17519716]
[1758560740955,3.30476738,112670.0,112660.0,97.17519716]
[1758560741173,2.92196738,112670.0,112660.0,97.17519716]
[1758560741379,3.30472738,112670.0,112660.0,97.17519716]
[1758560741625,3.35472738,112670.0,112660.0,97.17519716]
[1758560741839,3.40472738,112670.0,112660.0,97.17519716]
[1758560742501,3.30876738,112670.0,112660.0,97.17519716]
[1758560742720,3.02196738,112670.0,112660.0,97.17519716]
[1758560742952,3.30880738,112670.0,112660.0,97.17519716]
[1758560743166,3.40476738,112670.0,112660.0,97.17519716]
[1758560743580,3.38028042,112670.0,112660.0,97.17519716]
[1758560744040,2.99748042,112670.0,112660.0,97.17519716]
[1758560744258,3.38024042,112670.0,112660.0,97.17519716]
[1758560744458,2.99748042,112670.0,112660.0,97.17519716]
[1758560744708,3.38020042,112670.0,112660.0,97.17519716]
[1758560744939,3.37801866,112670.0,112660.0,97.17519716]
[1758560745158,2.99529866,112670.0,112660.0,97.17519716]
[1758560745374,3.37801866,112670.0,112660.0,97.17519716]
[1758560745628,2.94748042,112670.0,112660.0,97.17519716]